Cogmind - Beta 12 @@@ ROGUE MODE // 2023.03.22 @ 03:09:56 Player: Infomantis Result: Destroyed by D-53 Grenadier with Mini Grenade Launcher Performance ------------- Evolutions (0) 0 Regions Visited (4) 800 Robots Destroyed (13) 65 Value Destroyed (123) 123 Prototype IDs (23) 460 Alien Tech Used (0) 0 Bonus (300) 300 TOTAL SCORE: 1748 Bonus ------- Aligned with FarCom 300 Cogmind --------- Core Integrity 0/250 Matter 233/300 Energy 100/100 System Corruption 0% Temperature Cool (0) Movement Walking (120) Location -9/Mines Parts ------- > --- POWER (1) -------- (None) > --- PROPULSION (2) --- Aluminum Leg > --- UTILITY (2) ------ Small Storage Unit Seismic Detector > --- WEAPON (2) ------- Small Laser Assault Rifle > --- INVENTORY (8) ---- Ion Engine Light Treads Light Treads Wheel Improved Terrain Scanner Firepult Light Assault Rifle Peak State ------------ > --- POWER ------------ Ion Engine > --- PROPULSION ------- Aluminum Leg Aluminum Leg > --- UTILITY ---------- Small Storage Unit Seismic Detector > --- WEAPON ----------- Small Laser Assault Rifle > --- INVENTORY -------- Ion Engine Light Treads Light Treads Wheel Improved Terrain Scanner Firepult Light Assault Rifle [Rating: 9] Favorites ----------- Power Ion Engine Engine Ion Engine Propulsion Aluminum Leg Leg Aluminum Leg Utility Small Storage Unit Device Seismic Detector Storage Small Storage Unit Weapon Small Laser Energy Gun Small Laser Ballistic Gun Assault Rifle Build | -11 -10 -10 -10 -9 ------- Run | Jun Mat Min Exi Min Slots Evolved . | . . . . . Power . | . . . . . Propulsion . | . . . . . Utility . | . . . . . Weapon . | . . . . . Parts Attached 9 | 9 . . . . Power 1 | 1 . . . . Engine 1 | 1 . . . . Core . | . . . . . Reactor . | . . . . . Propulsion 2 | 2 . . . . Treads . | . . . . . Leg 2 | 2 . . . . Wheel . | . . . . . Hover . | . . . . . Flight . | . . . . . Utility 3 | 3 . . . . Device 2 | 2 . . . . Storage 1 | 1 . . . . Processor . | . . . . . Hackware . | . . . . . Protection . | . . . . . Artifact . | . . . . . Weapon 3 | 3 . . . . Energy Gun 1 | 1 . . . . Energy Cannon . | . . . . . Ballistic Gun 2 | 2 . . . . Ballistic Cannon . | . . . . . Launcher . | . . . . . Special Weapon . | . . . . . Impact Weapon . | . . . . . Slashing Weapon . | . . . . . Piercing Weapon . | . . . . . Special Melee Weapon . | . . . . . Unidentified Prototypes . | . . . . . Parts Lost 2 | . . . . 2 Power 1 | . . . . 1 Propulsion 1 | . . . . 1 Utility . | . . . . . Weapon . | . . . . . Highest Loss Streak 2 | . . . . 2 To Critical Strikes . | . . . . . Average Slot Usage (%) 99 | . 100 100 100 98 Engine 13 | . 14 14 14 13 Leg 27 | . 28 28 28 27 Device 14 | . 14 14 14 14 Storage 14 | . 14 14 14 14 Energy Gun 14 | . 14 14 14 14 Ballistic Gun 14 | . 14 14 14 14 Naked Turns . | . . . . . Heaviest Build 14 | 14 14 14 14 14 Greatest Support 20 | 20 20 20 20 20 Greatest Overweight (x) . | . . . . . Average Overweight (x) . | . . . . . Largest Inventory Capacity 8 | 8 8 8 8 8 Average Capacity 7 | 7 8 8 8 8 Most Carried 8 | 8 8 8 8 8 Average Carried 7 | 4 8 8 7 8 Final Capacity 8 | 8 8 8 8 8 Final Carried 8 | 8 8 8 8 8 Class Distribution -------------------- 100% | Mutant Dominant Class ---------------- Mutant | -10/Materials Mutant | -10/Mines Mutant | -10/Exiles Mutant | -9/Mines Resources | -11 -10 -10 -10 -9 ----------- Run | Jun Mat Min Exi Min Matter Collected 309 | 271 . . . 38 Remotely 84 | 84 . . . . Salvage Created 335 | 217 . 49 . 69 Parts 29 | 20 . 1 . 8 Haulers Intercepted . | . . . . . Recyclers Shooed 1 | 1 . . . . Parts Field Recycled . | . . . . . Retrieved Matter . | . . . . . Parts Self-Destructed . | . . . . . Prevented . | . . . . . Kills | -11 -10 -10 -10 -9 ------- Run | Jun Mat Min Exi Min Combat Hostiles Destroyed 5 | . . 1 . 4 Guns 5 | . . 1 . 4 Classes Destroyed 5 | 3 . 1 . 1 Worker 1 | 1 . . . . Tunneler 6 | 6 . . . . Recycler 1 | 1 . . . . Swarmer 4 | . . . . 4 Grunt 1 | . . 1 . . Best Kill Streak 4 | 3 . 1 . 4 Combat Bots Only 4 | . . 1 . 4 Max Kills in Single Turn 2 | 1 . 1 . 2 Gunslinging . | . . . . . Exploded . | . . . . . Melee . | . . . . . Uniques/NPCs Destroyed . | . . . . . Combat | -11 -10 -10 -10 -9 -------- Run | Jun Mat Min Exi Min Damage Taken 692 | . . 15 . 677 Core 256 | . . . . 256 Absorbed by Shields . | . . . . . Core Remaining (%) 100 | 100 . . . . Volleys Fired 33 | 22 . 2 . 9 Largest 2 | 2 . 2 . 2 Hottest 60 | 60 . 60 . 60 Shots Fired 66 | 44 . 4 . 18 Gun 66 | 44 . 4 . 18 Cannon . | . . . . . Launcher . | . . . . . Special . | . . . . . Kinetic 33 | 22 . 2 . 9 Thermal 33 | 22 . 2 . 9 Explosive . | . . . . . Electromagnetic . | . . . . . Robot Hit Streak 9 | 6 . 6 . 9 Robot Miss Streak 6 | 4 . . . 6 Penetration Max . | . . . . . Secondary Targets 2 | . . . . 2 Max Gunslinging Chain 1 | . . . . 1 Shots Hit Robots 40 | 30 . 4 . 6 Core Hits 15 | 9 . 2 . 4 Critical Kills . | . . . . . Critical Parts Destroyed . | . . . . . Critical Strikes . | . . . . . Melee Attacks . | . . . . . Impact . | . . . . . Slashing . | . . . . . Piercing . | . . . . . Sneak Attacks . | . . . . . Combat Hostiles . | . . . . . Follow-up Attacks . | . . . . . Damage Inflicted 493 | 361 . 49 . 83 Guns 492 | 361 . 48 . 83 Cannons . | . . . . . Explosions . | . . . . . Melee . | . . . . . Ramming 1 | . . 1 . . Kinetic 255 | 189 . 27 . 39 Thermal 237 | 172 . 21 . 44 Explosive . | . . . . . Electromagnetic . | . . . . . Impact . | . . . . . Slashing . | . . . . . Piercing . | . . . . . Highest Corruption . | . . . . . Average Corruption . | . . . . . Corruption Purged . | . . . . . Corruption Blocked . | . . . . . Overload Shots . | . . . . . Overflow Damage . | . . . . . Projectiles . | . . . . . Explosions . | . . . . . Melee . | . . . . . Knockbacks . | . . . . . Impact . | . . . . . Kinetic . | . . . . . Secondary . | . . . . . Self-Inflicted Damage . | . . . . . Shots . | . . . . . Rammed . | . . . . . Targets Rammed 1 | . . 1 . . Kicked 1 | . . 1 . . Crushed . | . . . . . Highest Temperature . | . . . . . Average Temperature . | . . . . . Received Heat Transfer 9 | . . 9 . . Siege Activations . | . . . . . Robots Corrupted . | . . . . . Combat Hostiles . | . . . . . Parts Fried . | . . . . . Impact Corruptions . | . . . . . Robots Melted . | . . . . . Combat Hostiles . | . . . . . Parts Melted . | . . . . . Heat Transferred 550 | 400 . 50 . 100 Parts Sabotaged . | . . . . . Parts Stolen . | . . . . . Parts Stripped . | . . . . . Power Chain Reactions . | . . . . . Missiles Intercepted . | . . . . . Alert | -11 -10 -10 -10 -9 ------- Run | Jun Mat Min Exi Min Peak Influence 90 | 40 26 44 . 90 Initial 26 | . 26 9 . . Average 38 | 16 26 15 . 79 Maximum Alert Level . | . . . . . Low Security (%) 100 | 100 100 100 . 100 Level 1 . | . . . . . Level 2 . | . . . . . Level 3 . | . . . . . Level 4 . | . . . . . Level 5 . | . . . . . High Security . | . . . . . Max Security . | . . . . . Squads Dispatched . | . . . . . Investigation . | . . . . . Extermination . | . . . . . Reinforcement . | . . . . . Assault . | . . . . . Garrison . | . . . . . Intercept . | . . . . . Searches Triggered . | . . . . . Construction Impeded . | . . . . . Haulers Reinforced . | . . . . . Active Scanning Responses . | . . . . . Cargo Convoy Interrupts . | . . . . . Stealth | -11 -10 -10 -10 -9 --------- Run | Jun Mat Min Exi Min Distress Signals . | . . . . . Communications Jammed . | . . . . . Distress Signals . | . . . . . Times Spotted 8 | . . 2 . 6 Peak Tracking Total 4 | . . 2 . 4 Tactical Retreats 1 | . . 1 . . Traps | -11 -10 -10 -10 -9 ------- Run | Jun Mat Min Exi Min Traps Triggered . | . . . . . Indirectly . | . . . . . Trap Hack Attempts . | . . . . . Triggered . | . . . . . Disarmed . | . . . . . Reprogrammed . | . . . . . Reused . | . . . . . Traps Extracted . | . . . . . Installed . | . . . . . Triggered . | . . . . . Machines | -11 -10 -10 -10 -9 ---------- Run | Jun Mat Min Exi Min Machines Disabled . | . . . . . Max in Single Turn . | . . . . . Machines Repaired . | . . . . . Machines Sabotaged . | . . . . . Overloaded Fab Kills . | . . . . . Hacking | -11 -10 -10 -10 -9 --------- Run | Jun Mat Min Exi Min Machines Accessed 2 | . . . 2 . Terminals . | . . . . . Fabricators . | . . . . . Repair Stations . | . . . . . Recycling Units . | . . . . . Scanalyzers . | . . . . . Garrison Access . | . . . . . Total Hacks 2 | . . . 2 . Successful 2 | . . . 2 . Failed . | . . . . . Catastrophic . | . . . . . Database Lockouts . | . . . . . Manual 1 | . . . 1 . Terminals . | . . . . . Fabricators . | . . . . . Repair Stations . | . . . . . Recycling Units . | . . . . . Scanalyzers . | . . . . . Garrison Access . | . . . . . Terminal Hacks 2 | . . . 2 . Record 1 | . . . 1 . EX-Prototype ID Bank 1 | . . . 1 . Fabricator Hacks . | . . . . . Repair Station Hacks . | . . . . . Recycling Unit Hacks . | . . . . . Scanalyzer . | . . . . . Garrison Access Hacks . | . . . . . Unauthorized Hacks . | . . . . . Terminals . | . . . . . Fabricators . | . . . . . Repair Stations . | . . . . . Recycling Units . | . . . . . Scanalyzers . | . . . . . Garrison Access . | . . . . . Data Cores Recovered . | . . . . . Used . | . . . . . Hacking Detections . | . . . . . Full Trace Events . | . . . . . Feedback Events . | . . . . . Feedback Blocked . | . . . . . Robot Schematics Acquired . | . . . . . Robots Built . | . . . . . Authchips . | . . . . . Time . | . . . . . Total Robot Build Rating . | . . . . . Part Schematics Acquired . | . . . . . Parts Built . | . . . . . Authchips . | . . . . . Time . | . . . . . Total Part Build Rating . | . . . . . Parts Repaired . | . . . . . Time . | . . . . . Parts Recycled . | . . . . . Recycled Matter . | . . . . . Retrieved Matter . | . . . . . Retrieved Components . | . . . . . Parts Scanalyzed . | . . . . . Part Schematics Acquired . | . . . . . Parts Damaged . | . . . . . Bothacking | -11 -10 -10 -10 -9 ------------ Run | Jun Mat Min Exi Min Used RIF Installer . | . . . . . Robots Hacked . | . . . . . Non-combat . | . . . . . Combat . | . . . . . Robot Hacks Applied . | . . . . . Relay Couplers Released . | . . . . . Fabnet Peak Effective % . | . . . . . Robots Rewired . | . . . . . Allies Hacked . | . . . . . Hacks Repelled . | . . . . . Allies | -11 -10 -10 -10 -9 -------- Run | Jun Mat Min Exi Min Total Allies . | . . . . . Largest Group . | . . . . . Highest-Rated Group . | . . . . . Highest-Rated Ally . | . . . . . Total Orders . | . . . . . Ally Attacks . | . . . . . Total Damage . | . . . . . Kills . | . . . . . Allies Corrupted . | . . . . . Allies Melted . | . . . . . Intel | -11 -10 -10 -10 -9 ------- Run | Jun Mat Min Exi Min Robot Analysis Total . | . . . . . Derelict Logs Recovered . | . . . . . Drone Launches . | . . . . . Drone Recoveries . | . . . . . Exploration | -11 -10 -10 -10 -9 ------------- Run | Jun Mat Min Exi Min Turns Passed 1229 | 256 9 168 552 244 Spaces Moved 913 | 147 8 124 459 175 Core 10 | 10 . . . . Treads . | . . . . . Legs 903 | 137 8 124 459 175 Wheels . | . . . . . Hover . | . . . . . Flight . | . . . . . Fastest Speed 50 | 50 120 120 120 120 Average Speed 119 | 115 120 120 120 120 Slowest Speed 120 | 120 120 120 120 120 Overloaded Moves . | . . . . . Propulsion Burnouts . | . . . . . Robots Hopped . | . . . . . Cave-ins Triggered . | . . . . . Exploration Rate (%) 31 | 7 4 24 71 50 Regions Visited 4 Branch Regions 3 Pre-discovered Areas 1 | . . . 1 . Known Exits Taken . | . . . . . Unknown Exits Taken 4 | 1 1 1 1 . Scrap Searched . | . . . . . Spaces Dug . | . . . . . Terrain Destroyed . | . . . . . Melee . | . . . . . Projectile . | . . . . . AOE . | . . . . . Terrain Rammed . | . . . . . Walls Destroyed . | . . . . . Machines Disabled . | . . . . . Actions | -11 -10 -10 -10 -9 --------- Run | Jun Mat Min Exi Min Total 983 | 185 7 139 461 191 Wait 20 | . . 13 . 7 Move 909 | 146 7 123 458 175 Hop . | . . . . . Pick Up 8 | 7 . . 1 . Fast Attach 8 | 8 . . . . Attach . | . . . . . Detach . | . . . . . Swap 1 | 1 . . . . Drop 3 | 1 . . 2 . Fire 33 | 22 . 2 . 9 Melee . | . . . . . Ram . | . . . . . Kick 1 | . . 1 . . Crush . | . . . . . Escape Stasis . | . . . . . Rewire . | . . . . . Trap . | . . . . . Miscellaneous . | . . . . . Route ------- -11/Junkyard -10/Materials -10/Mines -10/Exiles (discovered 2 exits: [*Min x2]) -9/Mines History --------- Turn | Location | Event 4 | -11/Junkyard | Discovered new exit (range 16) 257 | -11/Junkyard | Entered Materials 257 | -10/Materials | Discovered new exit (range 7) 266 | -10/Materials | Entered Mines 315 | -10/Mines | Build established: Mutant 427 | -10/Mines | Deemed a non-threat by the Exiles lab entrance 428 | -10/Mines | Discovered new exit (range 5) 434 | -10/Mines | Entered Exiles 452 | -10/Exiles | Discovered new exit (range 15) 464 | -10/Exiles | Met 8R-AWN 484 | -10/Exiles | Met EX-HEX 516 | -10/Exiles | Met EX-BIN 552 | -10/Exiles | Aligned with FarCom system 553 | -10/Exiles | Given EX-Vault access code 582 | -10/Exiles | Opened EX-Vault 618 | -10/Exiles | Warned to stay clear of 0b10 Research branches 656 | -10/Exiles | Met EX-DEC 664 | -10/Exiles | Learned location of Zion (-6) 871 | -10/Exiles | Found Firepult 973 | -10/Exiles | Discovered new exit (range 14) 986 | -10/Exiles | Left Exiles lab with Firepult 986 | -10/Exiles | Entered Mines 1191 | -9/Mines | Assembled infested the area 1196 | -9/Mines | Assisted by a Guerilla fighting off Assembled 1225 | -9/Mines | Core integrity fell below 50% 1230 | -9/Mines | Core integrity fell below 20% 1230 | -9/Mines | Destroyed by D-53 Grenadier with Mini Grenade Launcher Last Messages --------------- 01027_ S-10 Pest destroyed. 01027_ R-06 Scavenger collects Flight Unit. 01028_ K-01 Serf collects debris. 01030_ Acquired 19 matter. 01031_ K-01 Serf cleans the Plasma Injector. 01031_ R-06 Scavenger collects Lgt. Assault Rifle. 01034_ Acquired 19 matter. 01177_ K-01 Serf collects debris. 01191_ ALERT: Infestation in the mines, dispatching Demolisher response squad. 01196_ A derelict emerges from the shadows: "You need to get out of here! I've been tracking a group of Assembled to figure out where they're coming from, and they're closing on this area, come on!" 01210_ BF-2EO(h): "I'll hold them off! Go on ahead or try to find another way!" 01213_ Core Extractor disabled. 01217_ BF-2EO(h) destroyed. 01220_ Ion Engine destroyed. 01223_ Aluminum Leg destroyed. 01224_ T-07 Excavator is excavating. 01226_ The unstable cave ceiling collapses. 01228_ T-07 Excavator is excavating. Map ----- +----------------------------------------------------+ | ??????????# #???????? ????????????????? | | ??????????# #????????? ?????????????????? | | ??????????# #????????# ?????????????????? | | ??????????# #??####??# #?????????????????? | | ??????????# #?## ##?# #?????????????????? | | ??????????# ### #?# ##??????????? ????? | | ??????????# #?# ##?????????? ????? | | ??????????# ### #?????????? ????? | | ??????????###### #??????????? #???? | | ???????????????# """ ##??????????? #???? | | ???????????????# """ ##???????????? #???? | | ???????????????# "" ##??????????? #???? | | ???????????????# #??????????# #???? | | ??????####?????## ##????????## ###?? | | ??????? ?#### #???????## ### | | ???????# ## % #???##### | | ?????????# # ##??## ? | | ??????????# # #### #??? | | ?????????## ## ##### | | ???## ### # | | ???# # | | ???# d ## #### ### # | | ???## ###### ##??####?# # | | ????## d ##???####????????# # | | ?????### #???????????????# # | | ???????# @ #????????????????# # | | ???????## ##????????????????# # | | ????????# % #????????????????# # | | ???????# ##??####?####?????# # | | ???????#### ### ##??## ### ##????# # | | ??????????#####;??# #???# #??### # | | ?????????????? #??# #???# """ #### # | | ?????????????# ???# #???## """ ## | | ?????????????##???# #????## """ | | ??????????????????? #?????# # | | ??????????????????? #?????## ## | | ??????????????????? #??????## ##? | | ??????????????????? #???????# ##?? | | ??????????????????? ????????# #####??? | | ???????????????????##????????## ##??????? | | ??????????????????????????????######???????? | | ???????????????????????????????????????????? | | ???????????????????????????????????????????? | | ???????????????????????????????????????????? | | ???????????????????????????????????????????? | | ???????????????????????????????????????????? | | ???????????????????????????????????????????? | | | | | | | +----------------------------------------------------+ Best States ------------- Heat Dissipation 25 Energy Generation 10 Energy Capacity 250 Matter Stores 233 Matter Capacity 300 Sight Range 16 Terrain Scan Density 10 Evasion (%) 55 Item Schematics ----------------- None Robot Schematics ------------------ None Fabricated ------------ Nothing Alien Tech Used ----------------- None Achievements -------------- None Challenges ------------ None Game ------ Seed ExperimentalMiningDerivative Manual? 0 Play Time 00:07:00 Cumulative 320.1 hours Start 2023.03.22 @ 03:04:29 End 2023.03.22 @ 03:09:56 Sessions 1 Manual Loads 0 Difficulty Rogue Special Mode None Game No. 212 Rogue 189 Adventurer 6 Explorer 17 Win Type - Total 25 Types 17/0/4/1/0/1/1/1/0 Lore% 94 Gallery% 94 Achievement% 77 Wizard Run 0 Options --------- ASCII 0 Keyboard 0 Movement Numpad Keybinds 0 Fullscreen 1 Font 12/Fuzzy Map View 83x54 Tactical HUD 1 Map Filters NONE Filters NONE Steam 1 RUN: 68ca768c-2e7f-4815-b5e8-495c045b5b85